bitfinex/quotes_ETHUSD_20240709
["timestamp","ask_amount","ask_price","bid_price","bid_amount"]
[1720498133966,1.12678752,3074.9,3074.4,3.25266]
[1720498134142,0.03751696,3074.8,3074.4,3.25266]
[1720498134463,2.371,3075.1,3074.4,3.25266]
[1720498134630,0.03746717,3074.7,3074.4,3.25266]
[1720498134832,2.371,3075.1,3074.4,3.25266]
[1720498135043,0.03743235,3074.6,3074.4,3.25266]
[1720498135248,2.371,3075.1,3074.4,3.25266]
[1720498135457,0.03739752,3074.5,3074.4,3.25266]
[1720498135649,2.371,3075.1,3074.4,3.25266]
[1720498135850,0.03739752,3074.5,3074.4,3.25266]
[1720498136054,2.371,3075.1,3074.4,3.25266]
[1720498136235,0.03739752,3074.5,3074.4,3.25266]
[1720498136446,2.371,3075.1,3074.4,3.25266]
[1720498136650,0.03739752,3074.5,3074.4,3.25266]
[1720498137140,2.371,3075.1,3074.4,3.25266]
[1720498137471,1.16437685,3075.0,3074.4,3.25266]
[1720498137769,1.12680521,3074.9,3074.4,3.25266]
[1720498137964,1.16430721,3074.8,3074.4,3.25266]
[1720498138261,0.037502,3074.8,3074.2,3.25283]
[1720498138468,0.037502,3074.8,3074.3,3.25269]
[1720498138645,2.371,3075.1,3074.3,3.25269]
[1720498138845,1.12681587,3075.0,3074.3,3.25269]
[1720498139045,1.12681587,3074.9,3074.3,3.25269]
[1720498139243,1.12681587,3074.8,3074.1,3.25293]
[1720498139483,1.12681587,3074.7,3074.1,3.25297]
[1720498139702,1.12685121,3074.6,3073.3,8.11493118]
[1720498139966,3.49995121,3074.5,3073.5,3.25361]
[1720498140147,1.16436351,3074.4,3073.5,3.25361]
[1720498140359,1.12685121,3074.3,3073.5,3.25361]
[1720498140669,0.03744264,3074.2,3073.5,3.25361]
[1720498140867,1.12685121,3074.1,3073.5,3.25361]
[1720498141243,0.03737297,3074.0,3073.5,3.25361]
[1720498141571,1.12685121,3073.9,3073.5,3.25361]
[1720498141866,3.43445121,3073.9,3073.3,3.2538]
[1720498142042,2.3076,3073.9,3073.3,3.2538]
[1720498142238,1.12715206,3073.8,3073.3,3.2538]
[1720498142439,2.3076,3073.9,3073.1,3.25396]
[1720498142669,1.12719797,3073.8,3073.1,3.25396]
[1720498142840,2.3076,3073.9,3073.0,3.25414]
[1720498143043,1.12722538,3073.8,3073.0,3.25414]
[1720498143258,2.53836,3073.9,3073.0,3.25414]
[1720498143459,2.3076,3073.9,3072.7,7.43870763]
[1720498143642,2.3076,3074.4,3073.1,0.06507226]
[1720498143839,2.3076,3074.4,3073.7,3.25338]
[1720498144066,0.03725734,3074.3,3073.7,3.25338]
[1720498144569,2.3076,3074.4,3073.7,3.25338]
[1720498144740,2.3076,3075.1,3073.8,3.31832794]
[1720498144940,1.59724865,3075.0,3073.8,3.31832794]
[1720498145145,1.12694865,3074.9,3073.8,3.31832794]
[1720498145466,1.16428396,3074.8,3074.1,3.25297]
[1720498145667,1.1268646,3074.7,3074.1,3.25297]
[1720498145849,0.03733531,3074.8,3074.1,3.25297]
[1720498146044,0.03731056,3074.6,3074.1,3.25297]
[1720498146359,2.3076,3075.1,3074.1,3.25297]
[1720498146542,1.35762997,3075.0,3074.1,3.25297]
[1720498146741,1.12686997,3074.9,3074.1,3.25297]
[1720498146935,1.12686997,3074.8,3074.1,3.25297]
[1720498147135,0.0373802,3074.8,3074.1,3.25297]
[1720498147536,0.03742444,3074.7,3073.9,3.25318]
[1720498147982,2.3378,3074.9,3073.7,3.2534]
[1720498148279,1.12692636,3074.8,3073.7,3.2534]
[1720498148598,1.12692636,3074.7,3073.7,3.2534]
[1720498148874,1.12694799,3074.6,3073.7,6.5067]
[1720498149075,0.03743727,3074.7,3073.7,6.5067]
[1720498149249,1.12694942,3074.6,3073.7,6.5067]
[1720498149441,0.256856,3074.8,3073.7,6.5067]
[1720498149641,1.12692607,3074.7,3073.7,6.5067]
[1720498149942,1.12692607,3074.7,3073.5,2.3083]
[1720498149943,3.59412607,3074.6,3073.5,3.25354]
[1720498150138,1.49505519,3074.5,3073.5,3.25354]
[1720498150444,1.12692607,3074.4,3073.6,3.25349]
[1720498150671,1.12692607,3074.4,3073.7,3.25338]
[1720498151767,2.3365,3074.3,3073.5,3.25354]
[1720498151951,2.71965552,3074.3,3073.2,3.0]
[1720498152151,0.04972148,3074.2,3073.3,3.25379]
[1720498152351,1.17682505,3074.2,3073.3,3.25379]
[1720498152551,0.38964806,3074.2,3073.3,3.25379]
[1720498152755,1.12713497,3074.1,3073.3,3.25379]
[1720498152949,0.38964806,3074.2,3073.3,3.25379]
[1720498153573,0.38964806,3074.2,3073.4,3.25369]
[1720498153784,2.3365,3074.3,3073.4,3.25369]
[1720498153942,1.12707309,3074.2,3073.4,3.25369]
[1720498154271,1.127045,3074.1,3073.4,3.25369]
[1720498154470,2.3365,3074.3,3073.4,3.25369]
[1720498154687,1.12713363,3074.2,3073.4,3.25369]
[1720498154975,1.12713363,3074.1,3073.4,3.25369]
[1720498155144,1.12713363,3074.2,3073.4,3.25369]
[1720498155345,2.57015,3074.3,3073.4,3.25369]
[1720498155546,1.12713783,3074.2,3073.4,3.25369]
[1720498155741,1.1271405,3074.1,3073.4,3.25369]
[1720498155977,0.257015,3074.2,3073.4,3.25369]
[1720498156166,1.12713739,3074.1,3073.4,3.25369]
[1720498156476,0.257015,3074.2,3073.4,3.25369]
[1720498156665,0.03708017,3074.0,3073.4,3.25369]
[1720498156865,0.257015,3074.2,3073.4,3.25369]
[1720498157067,0.03704534,3073.9,3073.4,3.25369]
[1720498157372,2.3365,3074.3,3073.4,3.25369]
[1720498157577,1.12715776,3074.2,3073.4,3.25369]
[1720498157873,1.16417017,3074.1,3073.4,3.25369]
[1720498158069,0.03701241,3074.1,3073.4,3.25369]
[1720498158572,2.57015,3074.3,3073.4,3.25369]
[1720498158777,0.0370451,3074.2,3073.4,3.25369]
[1720498158954,1.16420046,3074.2,3073.4,3.25369]
[1720498159148,2.57015,3074.3,3073.4,3.25369]
[1720498159353,0.03701027,3074.1,3073.4,3.25369]
[1720498159551,2.3365,3074.3,3073.4,3.25369]
[1720498159779,1.12712263,3074.2,3073.4,3.25369]
[1720498159980,2.57015,3074.3,3073.4,3.25369]
[1720498160178,1.12712834,3074.2,3073.4,3.25369]
[1720498160349,0.03704724,3074.2,3073.4,3.25369]
[1720498160748,2.57015,3074.3,3073.4,3.25369]
[1720498161073,1.47088462,3074.2,3073.2,3.25383]
[1720498161258,0.2940601,3074.2,3073.2,3.25383]
[1720498161453,0.257015,3074.2,3073.3,3.25376]
[1720498161858,0.257015,3074.2,3073.2,3.25383]
[1720498162248,0.2593515,3074.1,3073.0,3.25406]
[1720498162447,2.361,3074.0,3073.1,3.25397]
[1720498163083,2.361,3074.0,3073.2,3.25393]
[1720498167087,0.256856,3074.8,3073.5,3.25359]
[1720498167088,2.347,3074.5,3073.5,3.25359]
[1720498167388,1.12709317,3074.4,3073.6,3.2535]
[1720498167688,1.12709317,3074.3,3073.6,3.2535]
[1720498168058,0.03703655,3074.2,3073.6,3.2535]
[1720498168254,0.03703655,3074.2,3073.8,3.25325]
[1720498168454,0.03703655,3074.2,3074.1,3.25298]
[1720498168685,2.3676,3074.7,3074.1,3.31803059]
[1720498169186,2.3676,3074.7,3074.1,3.25298]
[1720498169408,0.0370968,3074.6,3074.1,3.25298]
[1720498169974,0.0370968,3074.6,3074.0,3.25301]
[1720498170485,0.0370968,3074.6,3074.0,6.50602]
[1720498170664,0.0370968,3074.6,3074.1,3.25296]
[1720498171385,0.0370968,3074.6,3074.1,3.31801054]
[1720498172182,0.0370968,3074.6,3074.2,3.25287]
[1720498173185,2.2579,3075.0,3074.2,3.25287]
[1720498173388,1.12679758,3074.9,3074.2,3.25287]
[1720498173689,0.03725686,3074.9,3074.2,3.25287]
[1720498174194,0.03725686,3074.9,3074.3,0.06504948]
[1720498174493,4.92539206,3075.3,3074.8,3.25224]
[1720498176387,2.3274,3075.3,3074.8,3.25224]
[1720498176567,0.03731701,3075.2,3074.8,3.31727743]
[1720498176772,2.3274,3075.3,3074.8,3.31727743]
[1720498177066,0.03742151,3075.2,3074.8,3.25224]
[1720498177488,2.3274,3075.3,3074.7,3.25234]
[1720498177676,0.03738669,3075.1,3074.2,5.66447]
[1720498177873,0.03742151,3075.2,3074.3,3.25276]
[1720498178075,2.56014,3075.3,3074.3,3.25276]
[1720498178296,0.03747858,3075.1,3074.3,3.25276]
[1720498178497,0.29352739,3075.2,3074.3,3.25276]
[1720498178709,0.256014,3075.2,3074.3,3.25276]
[1720498179374,2.3274,3075.3,3074.4,0.06504547]
[1720498179587,0.1123514,3075.7,3075.0,3.25201]
[1720498179799,0.03753213,3075.2,3074.9,3.25213]
[1720498180101,2.4606514,3075.7,3074.9,3.25213]
[1720498180601,2.4606514,3075.7,3075.0,3.25202]
[1720498180805,2.70671654,3075.7,3075.0,3.25202]
[1720498182284,2.4606514,3075.7,3075.0,3.25202]
[1720498182606,2.4606514,3075.7,3075.0,3.31705292]
[1720498183600,2.4606514,3075.7,3075.1,3.25185]
[1720498183904,2.4606514,3075.7,3075.2,3.25173]
[1720498184285,0.03778445,3075.6,3075.2,3.25173]
[1720498184718,0.03778445,3075.6,3075.5,3.2515]
[1720498184918,0.03778445,3075.6,3075.5,6.503]
[1720498185107,0.03778445,3075.6,3075.5,6.56802022]
[1720498185321,0.1123514,3075.7,3075.6,3.25139]
[1720498185992,0.1123514,3075.7,3075.6,6.50278]
[1720498186326,0.1123514,3075.7,3075.6,6.5677971]
[1720498187092,0.1123514,3075.7,3075.6,6.50278]
[1720498187487,0.1123514,3075.7,3075.6,6.5677969]
[1720498188197,0.1123514,3075.7,3075.6,9.0146969]
[1720498188621,0.1123514,3075.7,3075.6,6.50278]
[1720498190524,0.1123514,3075.7,3075.6,3.25139]
[1720498193326,0.1123514,3075.7,3075.6,6.50278]
[1720498194310,0.1123514,3075.7,3075.6,8.98588]
[1720498195929,0.1123514,3075.7,3075.6,6.50278]
[1720498197355,0.1123514,3075.7,3075.6,9.75417]
[1720498197572,2.2633,3076.6,3076.4,3.2505]
[1720498199110,2.2633,3076.6,3076.2,3.25074]
[1720498199436,2.2633,3076.6,3076.3,3.25064]
[1720498199620,2.2633,3076.6,3076.4,3.25052]
[1720498200234,2.4639,3077.6,3076.4,3.25052]
[1720498200418,2.4639,3077.4,3076.4,3.25052]
[1720498200735,2.32661062,3077.3,3076.4,3.25052]
[1720498201427,2.32661062,3077.3,3076.2,3.25074]
[1720498201626,2.32661062,3077.3,3076.3,3.25065]
[1720498201825,2.52166106,3077.2,3076.3,3.25065]
[1720498202042,0.03754109,3077.1,3076.3,3.25065]
[1720498202622,2.289,3077.0,3076.3,3.25065]
[1720498202833,0.03747789,3076.9,3076.4,3.25055]
[1720498203223,2.289,3077.0,3076.4,3.25055]
[1720498204037,2.289,3077.0,3076.2,3.25068]
[1720498204374,2.5179,3077.0,3075.8,10.68985763]
[1720498204556,2.49912148,3076.9,3075.8,7.43870763]
[1720498204942,0.03743677,3076.8,3075.8,7.43870763]
[1720498205148,2.4494,3076.7,3075.8,10.68985763]
[1720498205697,0.03742486,3076.6,3075.8,10.68985763]
[1720498205958,2.4494,3076.7,3075.8,10.68985763]
[1720498206333,2.4494,3076.7,3075.8,7.43870763]
[1720498206635,2.69434,3076.7,3075.8,10.68988763]
[1720498206835,0.03742059,3076.6,3075.8,10.68988763]
[1720498207769,0.03742059,3076.6,3076.1,3.25083]
[1720498208060,2.4494,3076.7,3076.1,3.25083]
[1720498208282,2.4494,3076.7,3076.2,3.25076]
[1720498208567,2.4494,3076.7,3076.3,3.25058]
[1720498208767,2.4494,3076.7,3076.4,3.25054]
[1720498209540,2.2947,3077.7,3076.5,3.25043]
[1720498209842,2.2947,3077.5,3076.6,3.25033]
[1720498210042,2.2714,3077.3,3076.6,3.25033]
[1720498211948,2.2714,3077.3,3076.7,3.25015]
[1720498214749,2.2714,3077.3,3076.8,3.25008]
[1720498215104,2.2714,3077.3,3076.6,3.25026]
[1720498215272,2.2714,3077.3,3076.6,6.50052]
[1720498215483,2.2714,3077.3,3076.7,3.25022]
[1720498215775,2.2714,3077.3,3076.4,3.2505]
[1720498215979,2.49854,3077.3,3076.4,3.25046]
[1720498216384,2.49854,3077.3,3076.2,3.25072]
[1720498216385,1.12601434,3077.2,3076.2,3.25072]
[1720498216679,2.4712,3077.5,3076.0,3.25095]
[1720498216996,2.4712,3077.0,3076.1,3.2508]
[1720498217153,2.4712,3077.0,3076.2,3.25076]
[1720498218087,2.4712,3077.0,3075.8,3.25116]
[1720498218292,2.3403,3076.8,3075.6,3.25131]
[1720498218499,2.3403,3076.6,3075.6,3.25131]
[1720498218799,3.37930964,3076.5,3075.6,3.25131]
[1720498219008,1.4640406,3076.4,3075.6,6.50262]
[1720498219180,2.2532,3076.5,3075.7,3.25129]
[1720498219523,1.12629664,3076.4,3075.7,3.25129]
[1720498219659,2.2532,3076.5,3075.5,10.69014763]
[1720498219866,1.12630832,3076.4,3075.6,6.50267]
[1720498220075,2.2532,3076.5,3075.6,6.50267]
[1720498220693,2.2532,3076.5,3075.6,3.25129]
[1720498220994,2.2532,3076.5,3075.9,3.25107]
[1720498221303,2.2532,3076.5,3076.0,3.31597293]
[1720498221461,2.2532,3076.5,3076.0,3.25096]
[1720498222569,2.3748,3077.0,3076.2,3.25067]
[1720498222794,1.12612218,3076.9,3076.2,3.25067]
[1720498222997,2.3748,3077.0,3076.3,3.25057]
[1720498223316,2.3748,3077.0,3076.4,3.25053]
[1720498223500,2.3748,3077.0,3076.3,3.25059]
[1720498224410,2.3748,3077.0,3076.5,3.25038]
[1720498224990,2.3748,3077.0,3076.6,3.25033]
[1720498225802,2.3748,3077.0,3076.5,3.25038]
[1720498225968,2.3748,3077.0,3076.6,3.25032]
[1720498228340,2.3748,3077.0,3076.7,3.31521809]
[1720498228600,2.3748,3077.0,3076.7,3.25022]
[1720498230072,2.3625,3077.4,3076.8,3.25009]
[1720498230698,1.12590528,3077.3,3076.8,3.25009]
[1720498230899,2.3625,3077.4,3076.5,3.2504]
[1720498231212,1.1259133,3077.3,3076.8,3.25012]
[1720498231399,2.3625,3077.4,3076.8,3.25012]
[1720498232975,2.3625,3077.4,3076.5,0.06499215]
[1720498232976,2.3625,3077.4,3076.6,3.25026]
[1720498233177,2.3625,3077.4,3076.6,3.25034]
[1720498233407,1.12592582,3077.3,3076.5,3.25039]
[1720498233908,2.3625,3077.4,3076.5,3.25039]
[1720498234109,1.12594177,3077.3,3076.5,3.25039]
[1720498234406,2.3625,3077.4,3076.5,3.25039]
[1720498234617,1.12594411,3077.3,3076.5,3.25039]
[1720498234926,2.3625,3077.4,3076.5,3.25039]
[1720498235093,1.12594227,3077.3,3076.5,3.25039]
[1720498235290,2.3625,3077.4,3076.5,3.25039]
[1720498235490,1.12592792,3077.3,3076.5,3.25039]
[1720498235693,2.3625,3077.4,3076.5,3.25039]
[1720498235914,1.12593727,3077.3,3076.5,3.25039]
[1720498236102,2.3625,3077.4,3076.5,3.25039]
[1720498236401,1.12593755,3077.3,3076.5,3.25039]
[1720498236601,2.3625,3077.4,3076.5,3.25039]
[1720498236816,1.12593969,3077.3,3076.5,3.25039]
[1720498237005,2.3625,3077.4,3076.5,3.25039]
[1720498237305,1.1259394,3077.3,3076.5,3.25039]
[1720498237491,2.3625,3077.4,3076.5,3.25039]
[1720498237691,1.12592452,3077.3,3076.5,3.25039]
[1720498238005,2.3625,3077.4,3076.5,3.25039]
[1720498238206,1.12592114,3077.3,3076.5,3.25039]
[1720498238411,2.3625,3077.4,3076.5,3.25039]
[1720498238604,1.12592597,3077.3,3076.8,3.2501]
[1720498238807,2.3625,3077.4,3076.8,3.2501]
[1720498240031,0.34040763,3077.3,3076.8,3.2501]
[1720498241100,0.34040763,3077.3,3076.8,6.50013]
[1720498241446,0.34040763,3077.3,3076.9,3.24994]
[1720498241998,0.34040763,3077.3,3077.0,3.24991]
[1720498242299,0.34040763,3077.3,3076.8,3.25003]
[1720498242300,0.34040763,3077.3,3077.1,3.24978]
[1720498242735,0.34040763,3077.3,3077.0,3.24991]
[1720498242937,0.34040763,3077.3,3077.1,3.24978]
[1720498243522,0.34040763,3077.3,3077.0,3.24991]
[1720498244228,0.34040763,3077.3,3076.8,6.50014]
[1720498244428,0.34040763,3077.3,3076.8,3.25005]
[1720498244937,2.4577,3077.2,3076.8,3.25005]
[1720498245113,2.4577,3077.2,3076.4,3.25052]
[1720498245436,2.4577,3077.2,3076.5,3.25037]
[1720498247360,0.34040763,3077.3,3076.7,3.2502]
[1720498247521,0.34040763,3077.3,3076.8,3.25012]
[1720498247698,0.34040763,3077.3,3076.7,3.2502]
[1720498248099,2.3202,3077.2,3076.7,3.2502]
[1720498248921,0.34040763,3077.3,3076.7,3.2502]
[1720498249737,0.34040763,3077.3,3076.8,3.25009]
[1720498250939,0.34040763,3077.3,3076.9,2.4706]
[1720498251247,0.34040763,3077.3,3076.8,3.31508269]
[1720498251999,0.34040763,3077.3,3077.0,3.24988]
[1720498253107,0.34040763,3077.3,3076.8,3.31508269]
[1720498253361,1.12582183,3077.2,3076.8,3.31508269]
[1720498253536,2.72440763,3077.3,3076.9,3.24999]
[1720498253709,1.12584236,3077.2,3076.9,3.24999]
[1720498253913,2.72440763,3077.3,3076.9,3.24999]
[1720498254318,1.12581582,3077.2,3076.9,3.24999]
[1720498254508,2.72440763,3077.3,3076.9,3.24999]
[1720498254953,1.12584879,3077.2,3076.7,3.25016]
[1720498255106,2.72440763,3077.3,3076.7,3.25016]
[1720498255308,1.12584731,3077.2,3076.7,3.25016]
[1720498255635,2.72440763,3077.3,3076.7,3.25016]
[1720498255934,2.72440763,3077.3,3076.6,3.2503]
[1720498255935,1.12584595,3077.2,3076.8,3.2501]
[1720498256143,2.72440763,3077.3,3076.8,3.2501]
[1720498256317,1.12583185,3077.2,3076.8,3.2501]
[1720498256520,2.72440763,3077.3,3076.8,3.2501]
[1720498256717,1.12582527,3077.2,3076.8,3.2501]
[1720498256927,2.72440763,3077.3,3076.6,3.25026]
[1720498257238,1.12582424,3077.2,3076.6,3.25026]
[1720498257439,2.72440763,3077.3,3076.6,6.50051]
[1720498257629,1.1258392,3077.2,3076.6,3.25025]
[1720498257940,2.72440763,3077.3,3076.6,3.25025]
[1720498258137,1.12583912,3077.2,3076.7,3.25023]
[1720498258304,2.72440763,3077.3,3076.5,3.25039]
[1720498258509,1.12586999,3077.2,3076.4,3.2505]
[1720498258711,1.12586999,3077.1,3076.4,3.2505]
[1720498258909,2.72440763,3077.3,3076.4,3.2505]
[1720498259139,1.12586937,3077.2,3076.4,3.2505]
[1720498259435,1.12586937,3077.1,3076.4,3.2505]
[1720498259639,1.12586937,3077.2,3076.4,3.2505]
[1720498260019,1.12586937,3077.2,3076.6,3.2503]
[1720498260220,1.12586722,3077.1,3076.6,3.2503]
[1720498260444,2.72440763,3077.3,3076.6,3.2503]
[1720498260817,1.12587012,3077.2,3076.6,3.2503]
[1720498261006,1.12587012,3077.1,3076.4,3.2505]
[1720498261207,1.12587012,3077.1,3076.4,6.50098]
[1720498261208,1.12587012,3077.0,3076.4,6.50098]
[1720498261441,1.12587012,3077.0,3076.5,3.25042]
[1720498261607,1.12587012,3077.0,3076.4,3.25048]
[1720498261608,1.12587012,3077.2,3076.4,6.50093]
[1720498261836,0.3404175,3077.0,3076.4,3.25045]
[1720498262031,1.12587012,3076.9,3076.4,3.25045]
[1720498262715,0.3404175,3077.0,3076.4,3.25045]
[1720498263041,1.12596836,3076.9,3076.5,3.25043]
[1720498263221,0.3404175,3077.0,3076.5,3.25043]
[1720498263421,1.1259653,3076.9,3076.5,3.25043]
[1720498263624,0.3404175,3077.0,3076.5,3.25043]
[1720498263813,1.12596447,3076.9,3076.5,3.25043]
[1720498264012,0.3404175,3077.0,3076.6,3.25032]
[1720498264324,0.3404175,3077.0,3076.8,3.25011]
[1720498264829,0.3404175,3077.0,3076.6,3.95732]
[1720498265033,0.3404175,3077.0,3076.6,7.20758]
[1720498265326,0.3404175,3077.0,3076.7,3.25021]
[1720498265527,0.3404175,3077.0,3076.6,3.95726]
[1720498265726,0.3404175,3077.0,3076.6,3.25026]
[1720498265933,2.4298,3076.9,3076.0,0.674774]
[1720498266135,1.40310872,3076.8,3075.9,3.25105]
[1720498266442,1.12608697,3076.7,3076.1,3.2508]
[1720498266646,3.1368,3076.9,3076.2,0.06500498]
[1720498266647,1.12608697,3076.8,3076.2,0.06500498]
[1720498266950,0.3404175,3077.0,3076.5,3.25042]
[1720498267113,1.12598128,3076.9,3076.6,0.06499747]
[1720498267439,0.3404175,3077.0,3076.6,0.06499747]
[1720498267640,1.12599094,3076.9,3076.6,0.06499747]
[1720498267844,0.3404175,3077.0,3076.4,3.31543865]
[1720498268054,0.3404175,3077.0,3076.4,3.25044]
[1720498268055,1.12599515,3076.9,3076.4,3.25044]
[1720498268273,0.3404175,3077.0,3076.4,3.25044]
[1720498268549,1.12602567,3076.9,3076.5,3.25044]
[1720498268719,0.3404175,3077.0,3076.5,3.25044]
[1720498268923,1.12599993,3076.9,3076.5,3.25044]
[1720498269114,2.2535,3077.2,3076.5,3.25044]
[1720498269320,1.1260009,3077.1,3076.2,3.25072]
[1720498269626,1.1259986,3077.0,3076.2,3.25072]
[1720498269821,2.2535,3077.2,3076.4,3.25048]
[1720498270049,1.12597397,3077.1,3076.4,3.25048]
[1720498270359,1.12597397,3077.0,3076.3,3.25065]
[1720498270644,1.12597397,3076.9,3076.3,3.25065]
[1720498270852,1.12597397,3077.0,3076.0,3.25094]
[1720498271068,2.2535,3076.9,3076.0,3.25089]
[1720498271355,2.2535,3076.9,3075.4,13.10778763]
[1720498271356,2.2535,3076.7,3075.3,0.67619998]
[1720498271517,2.2535,3076.5,3075.1,3.09369998]
[1720498271716,1.17569545,3076.4,3075.2,1.13184324]
[1720498272021,1.12597397,3076.3,3075.3,3.25171]
[1720498272253,1.24477189,3076.2,3075.3,3.25171]
[1720498272495,1.12634093,3076.1,3075.3,3.25171]
[1720498272702,2.2535,3076.0,3075.0,3.25202]
[1720498272858,2.2535,3076.0,3074.9,3.25206]
[1720498272859,1.12634093,3075.9,3074.9,3.25206]
[1720498273187,1.12634093,3075.9,3075.0,3.252]
[1720498273391,0.06848057,3075.8,3075.0,3.252]
[1720498273539,2.59645624,3076.0,3075.0,3.252]
[1720498273741,0.37786904,3075.9,3074.9,3.25206]
[1720498274078,0.3093671,3075.9,3074.9,3.25206]
[1720498274577,2.2535,3076.0,3075.1,3.25192]
[1720498275472,2.2535,3076.0,3075.1,3.31694933]
[1720498275972,2.2535,3076.0,3075.1,3.25192]
[1720498276176,0.06813106,3075.9,3075.1,3.25192]
[1720498276372,2.2535,3076.0,3075.1,3.25192]
[1720498276572,0.06835498,3075.9,3075.1,3.25192]
[1720498276774,2.2535,3076.0,3075.1,3.25192]
[1720498277545,0.06848471,3075.9,3075.1,3.25192]
[1720498277775,2.2535,3076.0,3075.1,3.25192]
[1720498278084,0.11807433,3075.9,3075.1,3.25192]
[1720498278394,2.47885,3076.0,3075.1,3.25192]
[1720498278699,0.06834858,3075.9,3075.1,3.25192]
[1720498278970,2.2535,3076.0,3075.1,3.25192]
[1720498279176,0.06851134,3075.9,3075.1,3.25192]
[1720498279378,0.06851134,3075.9,3075.0,3.25203]
[1720498279379,0.04972148,3075.9,3075.0,3.25203]
[1720498279750,0.06853694,3075.8,3075.0,3.25203]
[1720498280149,2.47885,3076.0,3075.0,3.25203]
[1720498280380,0.3139517,3075.9,3075.0,3.25203]
[1720498280597,0.36367318,3075.9,3075.0,3.25203]
[1720498281582,0.3139517,3075.9,3075.1,3.25191]
[1720498281779,0.0660667,3075.9,3075.1,3.25191]
[1720498282569,0.0660667,3075.9,3075.2,3.31675926]
[1720498282768,2.2535,3076.0,3075.3,3.25169]
[1720498282974,0.06356506,3075.9,3075.3,3.25169]
[1720498283173,0.06356506,3075.9,3075.2,3.25173]
[1720498283406,2.2535,3076.0,3075.2,3.25173]
[1720498283583,0.06371512,3075.9,3075.2,3.25173]
[1720498284080,0.06371512,3075.9,3075.3,3.2517]
[1720498284854,0.06336868,3075.8,3075.3,3.2517]
[1720498285260,0.06336868,3075.8,3075.4,3.25156]
[1720498287788,2.4229,3075.7,3075.2,3.25173]
[1720498287992,2.4229,3075.7,3075.3,3.2517]
[1720498288291,0.0633833,3075.6,3075.0,3.25194]
[1720498288691,2.4229,3075.7,3075.0,3.25194]
[1720498289399,2.4229,3075.7,3075.1,3.2519]
[1720498290862,0.06371512,3075.9,3075.4,3.25159]
[1720498291061,0.06371512,3075.9,3075.8,3.25118]
[1720498291295,0.06371512,3075.9,3075.8,3.31619352]
[1720498292816,0.12259537,3075.9,3075.8,3.25118]
[1720498293101,0.06371512,3075.9,3075.8,3.25118]
[1720498294463,0.06371512,3075.9,3075.3,3.25171]
[1720498294464,0.06371512,3075.9,3075.7,3.25128]
[1720498295380,0.06371512,3075.9,3075.5,3.25149]
[1720498295381,0.06371512,3075.9,3075.8,3.25118]
[1720498295986,0.06371512,3075.9,3075.6,3.25136]
[1720498299025,2.3425,3075.8,3075.2,3.2518]
[1720498300322,2.3425,3075.8,3075.3,3.25168]
[1720498301715,2.3425,3075.8,3075.2,3.2518]
[1720498302379,2.3425,3075.8,3075.2,6.50352]
[1720498302682,2.3425,3075.8,3075.0,3.25199]
[1720498302879,2.58312151,3075.8,3075.0,3.25199]
[1720498303084,2.58312151,3075.8,3074.8,3.2522]
[1720498303085,2.3512,3075.6,3074.8,3.25214]
[1720498304114,2.3512,3075.6,3074.9,3.25209]
[1720498304313,2.61038215,3075.6,3074.7,3.25227]
[1720498304513,2.61038215,3075.6,3074.8,3.25216]
[1720498304709,2.61038215,3075.6,3074.8,3.25214]
[1720498305323,2.3512,3075.6,3074.8,3.25214]
[1720498305704,2.3512,3075.6,3074.9,3.25205]
[1720498305905,2.3512,3075.6,3075.3,3.25168]
[1720498306209,0.0589253,3075.5,3075.3,3.25168]
[1720498306403,2.41491512,3075.9,3075.3,3.25168]
[1720498306604,0.05902641,3075.8,3075.3,3.25168]
[1720498309156,0.05902641,3075.8,3075.1,3.25191]
[1720498309506,0.05902641,3075.8,3075.2,3.25181]
[1720498310145,2.3512,3075.7,3075.0,3.25196]
[1720498310521,2.3512,3075.7,3074.6,10.69106763]
[1720498310734,3.47775782,3075.6,3074.7,3.25233]
[1720498310937,2.3512,3075.6,3074.7,3.25233]
[1720498311124,1.12652048,3075.5,3074.7,3.25233]
[1720498311435,2.3512,3075.6,3074.7,3.25233]
[1720498311941,1.12659669,3075.5,3074.7,3.25233]
[1720498312141,2.3512,3075.6,3074.7,3.25233]
[1720498312337,1.12658552,3075.5,3074.7,3.25233]
[1720498312535,2.3512,3075.6,3074.7,3.25233]
[1720498312845,1.12659425,3075.5,3074.7,3.25233]
[1720498313054,2.3107,3075.4,3074.6,7.43870763]
[1720498313339,2.3107,3075.2,3074.6,7.43870763]
[1720498313645,2.3107,3075.0,3073.9,3.25319]
[1720498313819,2.3107,3074.8,3073.9,3.25319]
[1720498314002,0.1697,3075.5,3073.9,3.25319]
[1720498314003,2.2984,3074.6,3073.9,3.25319]
[1720498314210,0.24066501,3074.5,3073.9,3.25319]
[1720498314433,2.2984,3074.6,3073.9,3.25319]
[1720498316338,2.2984,3074.6,3074.0,3.25308]
[1720498316960,2.2984,3074.6,3073.8,3.25329]
[1720498317421,2.2984,3074.6,3073.5,3.25359]
[1720498317745,2.2984,3074.6,3073.2,7.43870763]
[1720498317746,2.3737,3074.5,3073.2,7.43870763]
[1720498318048,0.0583562,3074.4,3073.5,3.25359]
[1720498318558,2.3737,3074.3,3073.5,3.25359]
[1720498318962,2.3737,3074.3,3073.6,3.25349]
[1720498319191,2.3737,3074.3,3073.8,3.25327]
[1720498319484,2.3737,3074.3,3073.9,3.25318]
[1720498320047,2.3737,3075.1,3074.1,3.25297]
[1720498320367,0.0583952,3075.0,3074.1,3.25297]
[1720498321269,2.3737,3074.9,3074.1,3.25297]
[1720498321562,0.05830965,3074.8,3074.1,3.25297]
[1720498321952,2.4218,3074.7,3073.9,3.25318]
[1720498322465,0.05837152,3074.6,3074.0,0.06505231]
[1720498322767,2.66170718,3075.9,3074.9,3.25209]
[1720498322768,2.4218,3075.8,3074.9,3.25209]
[1720498323875,2.4218,3075.8,3074.8,3.25224]
[1720498324167,2.3534,3075.6,3074.5,3.25254]
[1720498324550,2.3534,3075.4,3074.5,3.25254]